[Event "Titled Tuesday Blitz March 21 Early 2023"]
[White "Kramnik, Vladimir"]
[Black "Andreikin, Dmitry"]
[WhiteFideId "4101588"]
[BlackFideId "4158814"]
[WhiteElo "2712"]
[BlackElo "2736"]
[Result "0-1"]
[Round "05"]
[TimeControl "180+2"]
[Date "2023.03.21"]
[WhiteClock "0:00:01"]
[BlackClock "0:00:11"]

1. Nf3 {[%clk 0:03:00]}  b5 {[%clk 0:02:58]} 2. e4 {[%clk 0:02:59]}  Bb7 {[%clk 0:02:58]} 3. Bxb5 {[%clk 0:02:58]}  Bxe4 {[%clk 0:02:58]} 4. O-O {[%clk 0:02:59]}  c6 {[%clk 0:02:58]} 5. Ba4 {[%clk 0:02:57]}  Nf6 {[%clk 0:02:57]} 6. d4 {[%clk 0:02:56]}  e6 {[%clk 0:02:56]} 7. c4 {[%clk 0:02:55]}  Be7 {[%clk 0:02:46]} 8. Nc3 {[%clk 0:02:55]}  Bxf3 {[%clk 0:02:47]} 9. Qxf3 {[%clk 0:02:54]}  O-O {[%clk 0:02:43]} 10. d5 {[%clk 0:02:49]}  cxd5 {[%clk 0:02:38]} 11. cxd5 {[%clk 0:02:49]}  Na6 {[%clk 0:02:25]} 12. Rd1 {[%clk 0:02:47]}  Qb6 {[%clk 0:02:18]} 13. Bg5 {[%clk 0:02:35]}  Nc5 {[%clk 0:02:10]} 14. Bc2 {[%clk 0:02:22]}  Qxb2 {[%clk 0:01:59]} 15. Rac1 {[%clk 0:01:49]}  Rac8 {[%clk 0:01:56]} 16. Qh3 {[%clk 0:01:31]}  g6 {[%clk 0:01:35]} 17. Bb1 {[%clk 0:00:54]}  Nxd5 {[%clk 0:01:16]} 18. Rc2 {[%clk 0:00:54]}  Qb7 {[%clk 0:00:54]} 19. Nxd5 {[%clk 0:00:26]}  Bxg5 {[%clk 0:00:53]} 20. Qg4 {[%clk 0:00:25]}  exd5 {[%clk 0:00:35]} 21. Qxg5 {[%clk 0:00:24]}  Ne4 {[%clk 0:00:35]} 22. Qe3 {[%clk 0:00:19]}  Rxc2 {[%clk 0:00:26]} 23. Bxc2 {[%clk 0:00:19]}  Rc8 {[%clk 0:00:23]} 24. Bb3 {[%clk 0:00:20]}  Nc3 {[%clk 0:00:21]} 25. Re1 {[%clk 0:00:20]}  Qb6 {[%clk 0:00:20]} 26. Qf3 {[%clk 0:00:14]}  Qd4 {[%clk 0:00:17]} 27. g3 {[%clk 0:00:12]}  Kg7 {[%clk 0:00:14]} 28. Re7 {[%clk 0:00:11]}  Qf6 {[%clk 0:00:14]} 29. Qxf6+ {[%clk 0:00:11]}  Kxf6 {[%clk 0:00:14]} 30. Rxd7 {[%clk 0:00:11]}  a5 {[%clk 0:00:13]} 31. Bxd5 {[%clk 0:00:10]}  Nxd5 {[%clk 0:00:13]} 32. Rxd5 {[%clk 0:00:10]}  a4 {[%clk 0:00:14]} 33. Rd4 {[%clk 0:00:09]}  a3 {[%clk 0:00:15]} 34. Rd3 {[%clk 0:00:09]}  Ra8 {[%clk 0:00:15]} 35. h4 {[%clk 0:00:09]}  h5 {[%clk 0:00:15]} 36. Re3 {[%clk 0:00:08]}  Kf5 {[%clk 0:00:15]} 37. Kf1 {[%clk 0:00:08]}  f6 {[%clk 0:00:15]} 38. Ke2 {[%clk 0:00:09]}  g5 {[%clk 0:00:16]} 39. hxg5 {[%clk 0:00:07]}  fxg5 {[%clk 0:00:17]} 40. Kf3 {[%clk 0:00:07]}  Ra7 {[%clk 0:00:16]} 41. Kg2 {[%clk 0:00:07]}  Ra6 {[%clk 0:00:16]} 42. Kh3 {[%clk 0:00:07]}  Ra5 {[%clk 0:00:14]} 43. Rb3 {[%clk 0:00:07]}  Ra6 {[%clk 0:00:13]} 44. Rb5+ {[%clk 0:00:06]}  Kg6 {[%clk 0:00:14]} 45. f4 {[%clk 0:00:06]}  gxf4 {[%clk 0:00:13]} 46. gxf4 {[%clk 0:00:06]}  Ra4 {[%clk 0:00:13]} 47. Kg3 {[%clk 0:00:04]}  Rc4 {[%clk 0:00:12]} 48. Rb3 {[%clk 0:00:04]}  Ra4 {[%clk 0:00:12]} 49. Rb6+ {[%clk 0:00:04]}  Kf5 {[%clk 0:00:12]} 50. Rb5+ {[%clk 0:00:04]}  Kg6 {[%clk 0:00:11]} 51. Rg5+ {[%clk 0:00:03]}  Kh6 {[%clk 0:00:11]} 52. Rb5 {[%clk 0:00:04]}  Rd4 {[%clk 0:00:10]} 53. Rb3 {[%clk 0:00:04]}  Ra4 {[%clk 0:00:09]} 54. Rb6+ {[%clk 0:00:04]}  Kg7 {[%clk 0:00:10]} 55. Rb3 {[%clk 0:00:03]}  Kf6 {[%clk 0:00:09]} 56. Rb6+ {[%clk 0:00:03]}  Kf7 {[%clk 0:00:10]} 57. Rb3 {[%clk 0:00:03]}  Ra5 {[%clk 0:00:10]} 58. Rc3 {[%clk 0:00:02]}  Kf6 {[%clk 0:00:10]} 59. Rb3 {[%clk 0:00:02]}  Kf5 {[%clk 0:00:10]} 60. Rc3 {[%clk 0:00:02]}  Ke4 {[%clk 0:00:11]} 61. Rb3 {[%clk 0:00:02]}  Kd4 {[%clk 0:00:11]} 62. Kh4 {[%clk 0:00:01]}  Ke4 {[%clk 0:00:11]} 63. Kg3 {[%clk 0:00:01]}  Rc5 {[%clk 0:00:11]} 0-1


[Site "https://www.chess.com"]

[Event "Titled Tuesday Blitz March 21 Early 2023"]
[White "Bachmann, Axel"]
[Black "Bluebaum, Matthias"]
[WhiteFideId "3700488"]
[BlackFideId "24651516"]
[WhiteElo "2605"]
[BlackElo "2638"]
[Result "1-0"]
[Round "05"]
[TimeControl "180+2"]
[Date "2023.03.21"]
[WhiteClock "0:00:10"]
[BlackClock "0:00:01"]

1. c4 {[%clk 0:01:42]}  e6 {[%clk 0:02:59]} 2. Nf3 {[%clk 0:01:42]}  d5 {[%clk 0:02:59]} 3. e3 {[%clk 0:01:41]}  Nf6 {[%clk 0:03:00]} 4. b3 {[%clk 0:01:41]}  Bd6 {[%clk 0:03:00]} 5. Bb2 {[%clk 0:01:42]}  O-O {[%clk 0:03:00]} 6. Nc3 {[%clk 0:01:43]}  c5 {[%clk 0:03:00]} 7. cxd5 {[%clk 0:01:41]}  exd5 {[%clk 0:03:01]} 8. d4 {[%clk 0:01:41]}  Nc6 {[%clk 0:03:00]} 9. Be2 {[%clk 0:01:41]}  cxd4 {[%clk 0:02:58]} 10. Nxd4 {[%clk 0:01:42]}  Nxd4 {[%clk 0:02:59]} 11. Qxd4 {[%clk 0:01:42]}  Re8 {[%clk 0:03:00]} 12. O-O {[%clk 0:01:39]}  Be5 {[%clk 0:02:59]} 13. Qd2 {[%clk 0:01:39]}  d4 {[%clk 0:02:57]} 14. Nb5 {[%clk 0:01:35]}  Ne4 {[%clk 0:02:21]} 15. Qd3 {[%clk 0:01:35]}  Nc5 {[%clk 0:02:04]} 16. Qc4 {[%clk 0:01:09]}  d3 {[%clk 0:01:56]} 17. Bh5 {[%clk 0:00:46]}  Be6 {[%clk 0:01:34]} 18. Qxc5 {[%clk 0:00:46]}  Bxb2 {[%clk 0:01:34]} 19. Rad1 {[%clk 0:00:47]}  Rc8 {[%clk 0:01:20]} 20. Qb4 {[%clk 0:00:45]}  a5 {[%clk 0:01:13]} 21. Qd2 {[%clk 0:00:43]}  Be5 {[%clk 0:00:45]} 22. Qxd3 {[%clk 0:00:39]}  Qh4 {[%clk 0:00:44]} 23. f4 {[%clk 0:00:39]}  Qxh5 {[%clk 0:00:31]} 24. fxe5 {[%clk 0:00:40]}  Qxe5 {[%clk 0:00:29]} 25. Nd4 {[%clk 0:00:35]}  Bd5 {[%clk 0:00:19]} 26. Rf5 {[%clk 0:00:31]}  Qe4 {[%clk 0:00:16]} 27. Qxe4 {[%clk 0:00:27]}  Bxe4 {[%clk 0:00:17]} 28. Rxa5 {[%clk 0:00:27]}  h6 {[%clk 0:00:17]} 29. h3 {[%clk 0:00:18]}  Rc3 {[%clk 0:00:17]} 30. Kf2 {[%clk 0:00:18]}  Bg6 {[%clk 0:00:16]} 31. Re1 {[%clk 0:00:16]}  Rd3 {[%clk 0:00:15]} 32. Re2 {[%clk 0:00:16]}  Rc8 {[%clk 0:00:14]} 33. Rb5 {[%clk 0:00:15]}  Be4 {[%clk 0:00:14]} 34. Rb4 {[%clk 0:00:15]}  Rd1 {[%clk 0:00:12]} 35. Kg3 {[%clk 0:00:10]}  f5 {[%clk 0:00:08]} 36. Kh2 {[%clk 0:00:10]}  Rcc1 {[%clk 0:00:07]} 37. Ne6 {[%clk 0:00:09]}  g5 {[%clk 0:00:06]} 38. Rb5 {[%clk 0:00:04]}  Kf7 {[%clk 0:00:05]} 39. Rb6 {[%clk 0:00:03]}  Bc6 {[%clk 0:00:04]} 40. Nd4 {[%clk 0:00:03]}  Be4 {[%clk 0:00:03]} 41. Rxh6 {[%clk 0:00:03]}  Kg7 {[%clk 0:00:04]} 42. Rb6 {[%clk 0:00:02]}  Rh1+ {[%clk 0:00:03]} 43. Kg3 {[%clk 0:00:02]}  Rcf1 {[%clk 0:00:03]} 44. Ne6+ {[%clk 0:00:02]}  Kg8 {[%clk 0:00:02]} 45. Nxg5 {[%clk 0:00:01]}  Bc6 {[%clk 0:00:03]} 46. Nf3 {[%clk 0:00:01]}  Rc1 {[%clk 0:00:04]} 47. Kf4 {[%clk 0:00:02]}  Rhf1 {[%clk 0:00:03]} 48. Kg3 {[%clk 0:00:02]}  Kf7 {[%clk 0:00:04]} 49. Nd4 {[%clk 0:00:03]}  Be4 {[%clk 0:00:04]} 50. Rb5 {[%clk 0:00:03]}  Rg1 {[%clk 0:00:04]} 51. Rf2 {[%clk 0:00:04]}  Rc3 {[%clk 0:00:04]} 52. Nxf5 {[%clk 0:00:04]}  Bc6 {[%clk 0:00:04]} 53. Rb4 {[%clk 0:00:04]}  Ke8 {[%clk 0:00:04]} 54. Rbf4 {[%clk 0:00:05]}  Kd7 {[%clk 0:00:04]} 55. Kh2 {[%clk 0:00:06]}  Rcc1 {[%clk 0:00:04]} 56. Nd4 {[%clk 0:00:06]}  Rh1+ {[%clk 0:00:05]} 57. Kg3 {[%clk 0:00:06]}  Rce1 {[%clk 0:00:06]} 58. Rf7+ {[%clk 0:00:06]}  Kd6 {[%clk 0:00:06]} 59. Nxc6 {[%clk 0:00:07]}  bxc6 {[%clk 0:00:05]} 60. R7f6+ {[%clk 0:00:07]}  Ke5 {[%clk 0:00:06]} 61. R6f3 {[%clk 0:00:08]}  c5 {[%clk 0:00:06]} 62. Kg4 {[%clk 0:00:09]}  Ke4 {[%clk 0:00:04]} 63. Rf4+ {[%clk 0:00:09]}  Kxe3 {[%clk 0:00:05]} 64. R2f3+ {[%clk 0:00:10]}  Kd2 {[%clk 0:00:05]} 65. Rc4 {[%clk 0:00:10]}  Re2 {[%clk 0:00:05]} 66. g3 {[%clk 0:00:09]}  Rhe1 {[%clk 0:00:03]} 67. Rxc5 {[%clk 0:00:09]}  Re8 {[%clk 0:00:03]} 68. Rff5 {[%clk 0:00:07]}  R1e4+ {[%clk 0:00:03]} 69. Rf4 {[%clk 0:00:08]}  R4e7 {[%clk 0:00:04]} 70. Rd4+ {[%clk 0:00:07]}  Ke3 {[%clk 0:00:04]} 71. Rf4 {[%clk 0:00:07]}  Rg8+ {[%clk 0:00:04]} 72. Rg5 {[%clk 0:00:08]}  Ra8 {[%clk 0:00:04]} 73. h4 {[%clk 0:00:08]}  Rxa2 {[%clk 0:00:04]} 74. b4 {[%clk 0:00:09]}  Rb2 {[%clk 0:00:04]} 75. b5 {[%clk 0:00:09]}  Rb7 {[%clk 0:00:04]} 76. h5 {[%clk 0:00:09]}  Rh2 {[%clk 0:00:04]} 77. Rf3+ {[%clk 0:00:08]}  Ke4 {[%clk 0:00:04]} 78. Rf4+ {[%clk 0:00:08]}  Ke3 {[%clk 0:00:05]} 79. Rf6 {[%clk 0:00:09]}  Ke4 {[%clk 0:00:05]} 80. b6 {[%clk 0:00:09]}  Rb2 {[%clk 0:00:05]} 81. h6 {[%clk 0:00:10]}  Rh2 {[%clk 0:00:05]} 82. Rg7 {[%clk 0:00:09]}  Rxh6 {[%clk 0:00:03]} 83. Rxb7 {[%clk 0:00:08]}  Rxf6 {[%clk 0:00:03]} 84. Re7+ {[%clk 0:00:08]}  Kd5 {[%clk 0:00:03]} 85. b7 {[%clk 0:00:09]}  Rb6 {[%clk 0:00:02]} 86. Kf5 {[%clk 0:00:10]}  Rb1 {[%clk 0:00:02]} 87. Kg6 {[%clk 0:00:09]}  Kd6 {[%clk 0:00:02]} 88. Kf7 {[%clk 0:00:09]}  Rf1+ {[%clk 0:00:02]} 89. Ke8 {[%clk 0:00:10]}  Rb1 {[%clk 0:00:03]} 90. g4 {[%clk 0:00:10]}  Kc6 {[%clk 0:00:03]} 91. g5 {[%clk 0:00:10]}  Rb5 {[%clk 0:00:01]} 92. g6 {[%clk 0:00:10]} 1-0


[Site "https://www.chess.com"]

[Event "Titled Tuesday Blitz March 21 Early 2023"]
[White "Vasquez Schroeder, Rodrigo"]
[Black "Shimanov, Aleksandr"]
[WhiteFideId "3400042"]
[BlackFideId "4198603"]
[WhiteElo "2600"]
[BlackElo "2631"]
[Result "0-1"]
[Round "05"]
[TimeControl "180+2"]
[Date "2023.03.21"]
[WhiteClock "0:00:15"]
[BlackClock "0:00:03"]

1. e4 {[%clk 0:03:00]}  d5 {[%clk 0:02:56]} 2. exd5 {[%clk 0:03:00]}  Qxd5 {[%clk 0:02:57]} 3. Nc3 {[%clk 0:03:00]}  Qe5+ {[%clk 0:02:57]} 4. Be2 {[%clk 0:02:59]}  Bg4 {[%clk 0:02:56]} 5. d4 {[%clk 0:02:56]}  Bxe2 {[%clk 0:02:55]} 6. Ngxe2 {[%clk 0:02:56]}  Qa5 {[%clk 0:02:55]} 7. O-O {[%clk 0:02:56]}  Nf6 {[%clk 0:02:55]} 8. Nf4 {[%clk 0:02:55]}  c6 {[%clk 0:02:52]} 9. Re1 {[%clk 0:02:32]}  e6 {[%clk 0:02:45]} 10. Nd3 {[%clk 0:02:23]}  Be7 {[%clk 0:02:37]} 11. Qf3 {[%clk 0:02:20]}  O-O {[%clk 0:02:24]} 12. Bd2 {[%clk 0:02:19]}  Qb6 {[%clk 0:02:19]} 13. Ne2 {[%clk 0:02:10]}  Nbd7 {[%clk 0:02:17]} 14. c4 {[%clk 0:02:10]}  Rad8 {[%clk 0:01:59]} 15. Bc3 {[%clk 0:02:10]}  Rfe8 {[%clk 0:01:59]} 16. Rad1 {[%clk 0:02:09]}  Qa6 {[%clk 0:01:55]} 17. Ne5 {[%clk 0:01:45]}  Nxe5 {[%clk 0:01:32]} 18. dxe5 {[%clk 0:01:45]}  Nd7 {[%clk 0:01:32]} 19. Qg4 {[%clk 0:01:27]}  Nb6 {[%clk 0:01:25]} 20. b3 {[%clk 0:01:16]}  Qxa2 {[%clk 0:01:24]} 21. Nd4 {[%clk 0:01:10]}  Rxd4 {[%clk 0:00:43]} 22. Bxd4 {[%clk 0:01:05]}  Qxb3 {[%clk 0:00:43]} 23. Bxb6 {[%clk 0:00:59]}  Qxb6 {[%clk 0:00:40]} 24. Rd7 {[%clk 0:00:58]}  a5 {[%clk 0:00:37]} 25. g3 {[%clk 0:00:56]}  a4 {[%clk 0:00:37]} 26. Qd1 {[%clk 0:00:47]}  a3 {[%clk 0:00:37]} 27. Re2 {[%clk 0:00:47]}  g6 {[%clk 0:00:33]} 28. Qd3 {[%clk 0:00:41]}  Qb4 {[%clk 0:00:24]} 29. Kg2 {[%clk 0:00:36]}  Ra8 {[%clk 0:00:23]} 30. Ra2 {[%clk 0:00:35]}  Kf8 {[%clk 0:00:22]} 31. h4 {[%clk 0:00:29]}  h5 {[%clk 0:00:22]} 32. Rd4 {[%clk 0:00:26]}  Qc5 {[%clk 0:00:22]} 33. Re4 {[%clk 0:00:20]}  Rd8 {[%clk 0:00:21]} 34. Qe2 {[%clk 0:00:21]}  Kg7 {[%clk 0:00:20]} 35. Rf4 {[%clk 0:00:21]}  Rd7 {[%clk 0:00:18]} 36. Re4 {[%clk 0:00:20]}  Qb4 {[%clk 0:00:18]} 37. Qf3 {[%clk 0:00:18]}  Qb1 {[%clk 0:00:15]} 38. Ree2 {[%clk 0:00:15]}  Qc1 {[%clk 0:00:10]} 39. Rec2 {[%clk 0:00:15]}  Qb1 {[%clk 0:00:08]} 40. Re2 {[%clk 0:00:15]}  Qb4 {[%clk 0:00:07]} 41. Qe4 {[%clk 0:00:15]}  Qc5 {[%clk 0:00:07]} 42. Rec2 {[%clk 0:00:15]}  Rd4 {[%clk 0:00:08]} 43. Qe2 {[%clk 0:00:16]}  Qb4 {[%clk 0:00:07]} 44. Qe3 {[%clk 0:00:16]}  Bc5 {[%clk 0:00:07]} 45. Rc3 {[%clk 0:00:16]}  Qb6 {[%clk 0:00:06]} 46. Qf3 {[%clk 0:00:16]}  Qd8 {[%clk 0:00:06]} 47. Rb3 {[%clk 0:00:15]}  Qe7 {[%clk 0:00:06]} 48. Raxa3 {[%clk 0:00:16]}  Bxa3 {[%clk 0:00:06]} 49. Rxa3 {[%clk 0:00:16]}  Rxc4 {[%clk 0:00:06]} 50. Rd3 {[%clk 0:00:16]}  Rc5 {[%clk 0:00:06]} 51. Qf4 {[%clk 0:00:17]}  Rd5 {[%clk 0:00:06]} 52. Rf3 {[%clk 0:00:17]}  b5 {[%clk 0:00:06]} 53. Re3 {[%clk 0:00:17]}  b4 {[%clk 0:00:07]} 54. Rf3 {[%clk 0:00:18]}  c5 {[%clk 0:00:07]} 55. Re3 {[%clk 0:00:17]}  Rd4 {[%clk 0:00:07]} 56. Qf3 {[%clk 0:00:17]}  Qd8 {[%clk 0:00:07]} 57. Kh2 {[%clk 0:00:17]}  c4 {[%clk 0:00:06]} 58. Qb7 {[%clk 0:00:17]}  c3 {[%clk 0:00:06]} 59. Rf3 {[%clk 0:00:17]}  Qd7 {[%clk 0:00:04]} 60. Qb6 {[%clk 0:00:17]}  Qd5 {[%clk 0:00:04]} 61. Rf6 {[%clk 0:00:16]}  Qxe5 {[%clk 0:00:04]} 62. Rf3 {[%clk 0:00:16]}  Qd5 {[%clk 0:00:03]} 63. Kg2 {[%clk 0:00:15]}  Rd3 {[%clk 0:00:03]} 0-1


[Site "https://www.chess.com"]

[Event "Titled Tuesday Blitz March 21 Early 2023"]
[White "Lenderman, Aleksandr"]
[Black "Tanenbaum, Zachary"]
[WhiteFideId "2021285"]
[BlackFideId "2060850"]
[WhiteElo "2607"]
[BlackElo "2175"]
[Result "1-0"]
[Round "05"]
[TimeControl "180+2"]
[Date "2023.03.21"]
[WhiteClock "0:02:00"]
[BlackClock "0:00:07"]

1. Nf3 {[%clk 0:03:00]}  d5 {[%clk 0:02:59]} 2. e3 {[%clk 0:02:59]}  Nf6 {[%clk 0:02:59]} 3. c4 {[%clk 0:02:59]}  dxc4 {[%clk 0:02:53]} 4. Bxc4 {[%clk 0:02:59]}  e6 {[%clk 0:02:54]} 5. O-O {[%clk 0:02:59]}  c5 {[%clk 0:02:53]} 6. d4 {[%clk 0:02:57]}  a6 {[%clk 0:02:53]} 7. b3 {[%clk 0:02:55]}  Nc6 {[%clk 0:02:46]} 8. Bb2 {[%clk 0:02:55]}  cxd4 {[%clk 0:02:47]} 9. Nxd4 {[%clk 0:02:54]}  Bd7 {[%clk 0:02:47]} 10. Nd2 {[%clk 0:02:52]}  Nxd4 {[%clk 0:02:47]} 11. Bxd4 {[%clk 0:02:53]}  Bc6 {[%clk 0:02:47]} 12. Nf3 {[%clk 0:02:53]}  Be7 {[%clk 0:02:46]} 13. Ne5 {[%clk 0:02:52]}  Bd5 {[%clk 0:02:46]} 14. Qe2 {[%clk 0:02:52]}  O-O {[%clk 0:02:31]} 15. Rfd1 {[%clk 0:02:52]}  Qa5 {[%clk 0:02:24]} 16. Bxd5 {[%clk 0:02:47]}  Nxd5 {[%clk 0:02:24]} 17. Nc4 {[%clk 0:02:47]}  Qb5 {[%clk 0:02:15]} 18. a4 {[%clk 0:02:35]}  Qxb3 {[%clk 0:02:15]} 19. Rdb1 {[%clk 0:02:34]}  Nc3 {[%clk 0:02:00]} 20. Qd3 {[%clk 0:02:34]}  Qxb1+ {[%clk 0:01:46]} 21. Rxb1 {[%clk 0:02:34]}  Nxb1 {[%clk 0:01:47]} 22. Qxb1 {[%clk 0:02:35]}  b5 {[%clk 0:01:44]} 23. axb5 {[%clk 0:02:34]}  axb5 {[%clk 0:01:45]} 24. Ne5 {[%clk 0:02:27]}  Rfc8 {[%clk 0:01:31]} 25. g4 {[%clk 0:02:24]}  b4 {[%clk 0:01:31]} 26. Kg2 {[%clk 0:02:18]}  Rab8 {[%clk 0:01:24]} 27. Qb3 {[%clk 0:02:17]}  h6 {[%clk 0:01:14]} 28. Nf3 {[%clk 0:02:10]}  Bf6 {[%clk 0:01:10]} 29. Bxf6 {[%clk 0:02:08]}  gxf6 {[%clk 0:01:10]} 30. Nd2 {[%clk 0:02:03]}  Rc3 {[%clk 0:01:01]} 31. Qb2 {[%clk 0:02:03]}  f5 {[%clk 0:00:44]} 32. gxf5 {[%clk 0:02:03]}  exf5 {[%clk 0:00:45]} 33. Nb3 {[%clk 0:02:03]}  Kh7 {[%clk 0:00:34]} 34. Nd4 {[%clk 0:02:03]}  f4 {[%clk 0:00:34]} 35. Qb1+ {[%clk 0:02:01]}  Kh8 {[%clk 0:00:34]} 36. Qf5 {[%clk 0:02:01]}  Rg8+ {[%clk 0:00:23]} 37. Kf3 {[%clk 0:02:01]}  fxe3 {[%clk 0:00:21]} 38. fxe3 {[%clk 0:02:02]}  Rc1 {[%clk 0:00:12]} 39. Qf6+ {[%clk 0:02:00]}  Kh7 {[%clk 0:00:11]} 40. Nf5 {[%clk 0:02:01]}  Rf1+ {[%clk 0:00:09]} 41. Ke2 {[%clk 0:02:01]}  Rfg1 {[%clk 0:00:07]} 42. Qxh6# {[%clk 0:02:00]} 1-0


[Site "https://www.chess.com"]

[Event "Titled Tuesday Blitz March 21 Early 2023"]
[White "Ter-Sahakyan, Samvel"]
[Black "Kaufman, Raymond"]
[WhiteFideId "13302531"]
[BlackFideId "2015056"]
[WhiteElo "2566"]
[BlackElo "2321"]
[Result "1-0"]
[Round "05"]
[TimeControl "180+2"]
[Date "2023.03.21"]
[WhiteClock "0:00:09"]
[BlackClock "0:00:01"]

1. d4 {[%clk 0:02:59]}  Nf6 {[%clk 0:02:58]} 2. c4 {[%clk 0:02:59]}  e6 {[%clk 0:02:58]} 3. Nf3 {[%clk 0:02:58]}  d5 {[%clk 0:02:57]} 4. Nc3 {[%clk 0:02:59]}  Bb4 {[%clk 0:02:56]} 5. Qa4+ {[%clk 0:02:57]}  Nc6 {[%clk 0:02:56]} 6. Bd2 {[%clk 0:02:57]}  Bd7 {[%clk 0:02:35]} 7. Qb3 {[%clk 0:02:30]}  dxc4 {[%clk 0:02:26]} 8. Qxc4 {[%clk 0:02:30]}  O-O {[%clk 0:02:17]} 9. g3 {[%clk 0:02:15]}  h6 {[%clk 0:02:11]} 10. Bg2 {[%clk 0:02:15]}  Bd6 {[%clk 0:02:10]} 11. O-O {[%clk 0:02:11]}  e5 {[%clk 0:02:04]} 12. dxe5 {[%clk 0:01:48]}  Nxe5 {[%clk 0:02:03]} 13. Nxe5 {[%clk 0:01:47]}  Bxe5 {[%clk 0:02:04]} 14. Bf4 {[%clk 0:01:39]}  Be6 {[%clk 0:01:57]} 15. Qb4 {[%clk 0:01:38]}  Bxf4 {[%clk 0:01:54]} 16. gxf4 {[%clk 0:01:34]}  a5 {[%clk 0:01:27]} 17. Qxb7 {[%clk 0:01:25]}  Rb8 {[%clk 0:01:27]} 18. Qa7 {[%clk 0:01:20]}  Rxb2 {[%clk 0:01:21]} 19. Rfd1 {[%clk 0:01:20]}  Qb8 {[%clk 0:01:15]} 20. Qxa5 {[%clk 0:01:16]}  c5 {[%clk 0:01:06]} 21. e3 {[%clk 0:00:48]}  Qb4 {[%clk 0:00:54]} 22. Qxb4 {[%clk 0:00:35]}  cxb4 {[%clk 0:00:55]} 23. Nd5 {[%clk 0:00:35]}  Nxd5 {[%clk 0:00:35]} 24. Bxd5 {[%clk 0:00:35]}  Bxd5 {[%clk 0:00:35]} 25. Rxd5 {[%clk 0:00:36]}  Ra8 {[%clk 0:00:35]} 26. Rd4 {[%clk 0:00:31]}  b3 {[%clk 0:00:34]} 27. a4 {[%clk 0:00:32]}  Rc2 {[%clk 0:00:29]} 28. Rb4 {[%clk 0:00:15]}  b2 {[%clk 0:00:27]} 29. Rf1 {[%clk 0:00:15]}  Ra6 {[%clk 0:00:19]} 30. Kg2 {[%clk 0:00:14]}  Rd2 {[%clk 0:00:08]} 31. Kf3 {[%clk 0:00:12]}  Rc2 {[%clk 0:00:06]} 32. h4 {[%clk 0:00:11]}  Rc1 {[%clk 0:00:06]} 33. Kg2 {[%clk 0:00:09]}  Rxf1 {[%clk 0:00:06]} 34. Kxf1 {[%clk 0:00:10]}  Rxa4 {[%clk 0:00:06]} 35. Rxb2 {[%clk 0:00:10]}  Ra5 {[%clk 0:00:05]} 36. Kg2 {[%clk 0:00:10]}  h5 {[%clk 0:00:05]} 37. Kf3 {[%clk 0:00:10]}  g6 {[%clk 0:00:05]} 38. Rb6 {[%clk 0:00:10]}  Ra3 {[%clk 0:00:05]} 39. f5 {[%clk 0:00:09]}  gxf5 {[%clk 0:00:04]} 40. Rb5 {[%clk 0:00:09]}  Ra4 {[%clk 0:00:02]} 41. Kg3 {[%clk 0:00:09]}  Rg4+ {[%clk 0:00:02]} 42. Kh3 {[%clk 0:00:10]}  Re4 {[%clk 0:00:01]} 43. Rxf5 {[%clk 0:00:09]}  Kg7 {[%clk 0:00:01]} 44. Rxh5 {[%clk 0:00:10]}  Kg6 {[%clk 0:00:01]} 45. Rg5+ {[%clk 0:00:10]}  Kf6 {[%clk 0:00:01]} 46. Kg3 {[%clk 0:00:10]}  Ra4 {[%clk 0:00:01]} 47. Rg4 {[%clk 0:00:10]}  Ra1 {[%clk 0:00:01]} 48. Kg2 {[%clk 0:00:09]}  Ra2 {[%clk 0:00:01]} 49. Rg3 {[%clk 0:00:09]} 1-0


[Site "https://www.chess.com"]

[Event "Titled Tuesday Blitz March 21 Early 2023"]
[White "Naroditsky, Daniel"]
[Black "Postny, Evgeny"]
[WhiteFideId "2026961"]
[BlackFideId "2804344"]
[WhiteElo "2633"]
[BlackElo "2509"]
[Result "1-0"]
[Round "05"]
[TimeControl "180+2"]
[Date "2023.03.21"]
[WhiteClock "0:01:03"]
[BlackClock "0:00:44"]

1. d4 {[%clk 0:03:00]}  Nf6 {[%clk 0:02:50]} 2. Nc3 {[%clk 0:03:01]}  d5 {[%clk 0:02:49]} 3. Bf4 {[%clk 0:03:01]}  a6 {[%clk 0:02:49]} 4. e3 {[%clk 0:03:01]}  e6 {[%clk 0:02:50]} 5. a3 {[%clk 0:03:01]}  Bd6 {[%clk 0:02:48]} 6. Nf3 {[%clk 0:03:01]}  c5 {[%clk 0:02:46]} 7. dxc5 {[%clk 0:02:59]}  Bxc5 {[%clk 0:02:45]} 8. Bd3 {[%clk 0:02:59]}  Nc6 {[%clk 0:02:45]} 9. O-O {[%clk 0:03:00]}  Bd6 {[%clk 0:02:45]} 10. Bxd6 {[%clk 0:02:58]}  Qxd6 {[%clk 0:02:45]} 11. e4 {[%clk 0:02:59]}  d4 {[%clk 0:02:31]} 12. Nb1 {[%clk 0:02:54]}  e5 {[%clk 0:02:28]} 13. Nbd2 {[%clk 0:02:51]}  O-O {[%clk 0:02:24]} 14. Re1 {[%clk 0:02:33]}  Be6 {[%clk 0:02:11]} 15. Ng5 {[%clk 0:02:29]}  Bg4 {[%clk 0:02:06]} 16. Qb1 {[%clk 0:02:22]}  h6 {[%clk 0:02:04]} 17. Ngf3 {[%clk 0:02:21]}  Nd7 {[%clk 0:02:00]} 18. h3 {[%clk 0:02:18]}  Be6 {[%clk 0:01:58]} 19. Nf1 {[%clk 0:02:06]}  Nc5 {[%clk 0:01:56]} 20. Ng3 {[%clk 0:02:06]}  Rfe8 {[%clk 0:01:39]} 21. Qc1 {[%clk 0:01:59]}  Rac8 {[%clk 0:01:35]} 22. Qd2 {[%clk 0:01:59]}  b5 {[%clk 0:01:30]} 23. Nh4 {[%clk 0:01:56]}  Bc4 {[%clk 0:01:27]} 24. Nhf5 {[%clk 0:01:54]}  Qf8 {[%clk 0:01:27]} 25. Nh5 {[%clk 0:01:43]}  Ne6 {[%clk 0:01:14]} 26. Nfxg7 {[%clk 0:01:40]}  Bxd3 {[%clk 0:01:02]} 27. Nxe8 {[%clk 0:01:04]}  Rxe8 {[%clk 0:00:50]} 28. cxd3 {[%clk 0:01:04]}  f6 {[%clk 0:00:44]} 29. Rac1 {[%clk 0:01:04]}  Ncd8 {[%clk 0:00:44]} 30. Qe2 {[%clk 0:01:03]}  Kh7 {[%clk 0:00:44]} 31. Qg4 {[%clk 0:01:03]} 1-0


[Site "https://www.chess.com"]

[Event "Titled Tuesday Blitz March 21 Early 2023"]
[White "Sanal, Vahap"]
[Black "Wei, Yi"]
[WhiteFideId "6300545"]
[BlackFideId "8603405"]
[WhiteElo "2606"]
[BlackElo "2686"]
[Result "0-1"]
[Round "05"]
[TimeControl "180+2"]
[Date "2023.03.21"]
[WhiteClock "0:00:27"]
[BlackClock "0:00:26"]

1. d4 {[%clk 0:02:51]}  Nf6 {[%clk 0:02:56]} 2. Nf3 {[%clk 0:02:52]}  d6 {[%clk 0:02:55]} 3. Nc3 {[%clk 0:02:48]}  Bf5 {[%clk 0:02:29]} 4. Nh4 {[%clk 0:02:44]}  Bd7 {[%clk 0:02:25]} 5. e4 {[%clk 0:02:43]}  e5 {[%clk 0:02:26]} 6. Nf3 {[%clk 0:02:43]}  Nc6 {[%clk 0:02:26]} 7. Bc4 {[%clk 0:02:36]}  Be7 {[%clk 0:02:19]} 8. h3 {[%clk 0:02:31]}  O-O {[%clk 0:02:18]} 9. O-O {[%clk 0:02:32]}  exd4 {[%clk 0:02:09]} 10. Nxd4 {[%clk 0:02:31]}  Ne5 {[%clk 0:02:10]} 11. Be2 {[%clk 0:02:28]}  Re8 {[%clk 0:02:09]} 12. Re1 {[%clk 0:02:28]}  c6 {[%clk 0:02:07]} 13. Bf4 {[%clk 0:02:23]}  Qc7 {[%clk 0:02:06]} 14. Qd2 {[%clk 0:02:23]}  h6 {[%clk 0:02:05]} 15. Rad1 {[%clk 0:02:22]}  Bf8 {[%clk 0:02:05]} 16. Bg3 {[%clk 0:02:21]}  Rad8 {[%clk 0:02:02]} 17. f4 {[%clk 0:02:17]}  Ng6 {[%clk 0:02:01]} 18. Bf3 {[%clk 0:02:15]}  b5 {[%clk 0:01:55]} 19. a3 {[%clk 0:02:14]}  a5 {[%clk 0:01:55]} 20. b4 {[%clk 0:01:57]}  axb4 {[%clk 0:01:50]} 21. axb4 {[%clk 0:01:58]}  Qb6 {[%clk 0:01:45]} 22. Kh2 {[%clk 0:01:55]}  c5 {[%clk 0:01:40]} 23. Nb3 {[%clk 0:01:26]}  cxb4 {[%clk 0:01:32]} 24. Nd5 {[%clk 0:01:18]}  Nxd5 {[%clk 0:01:32]} 25. Qxd5 {[%clk 0:01:19]}  Rc8 {[%clk 0:01:27]} 26. Rd2 {[%clk 0:01:12]}  Rc3 {[%clk 0:01:21]} 27. Bh5 {[%clk 0:00:58]}  Bc6 {[%clk 0:00:46]} 28. Qd4 {[%clk 0:00:58]}  Qc7 {[%clk 0:00:26]} 29. Qxb4 {[%clk 0:00:32]}  Rxg3 {[%clk 0:00:26]} 30. Kxg3 {[%clk 0:00:31]}  d5 {[%clk 0:00:26]} 31. exd5 {[%clk 0:00:27]}  Bxb4 {[%clk 0:00:26]} 0-1


[Site "https://www.chess.com"]